fUSD/lending_fUSD_20240725
["ID","MTS","AMOUNT","RATE_DAILY","PERIOD"]
[333111960,1721873444482,-500.0,0.00010958,2]
[333111961,1721873444493,-200.0,0.00010959,2]
[333111962,1721873444503,-1338.78,0.00010959,5]
[333111963,1721873444512,-250.0,0.00010959,2]
[333111964,1721873444521,-566.78,0.00010977,2]
[333111965,1721873444531,-500.0,0.00010977,2]
[333111966,1721873444540,-569.59818483,0.00010977,2]
[333111967,1721873444549,-500.0,0.00010977,2]
[333111968,1721873444558,-500.0,0.00010977,2]
[333111969,1721873444568,-500.0,0.00010978,2]
[333111970,1721873444577,-500.0,0.00010978,2]
[333111971,1721873444587,-350.93874274,0.00010978,2]
[333111972,1721873444597,-500.0,0.00010978,2]
[333111973,1721873444608,-500.0,0.00010978,2]
[333111974,1721873444617,-503.71968601,0.00010978,2]
[333111975,1721873444626,-324.07613698,0.00010978,2]
[333111976,1721873444636,-600.21,0.00010978,2]
[333111977,1721873444647,-771.48,0.00010978,2]
[333111978,1721873444657,-1255.98,0.00010978,2]
[333111979,1721873444666,-500.0,0.00010978,2]
[333111980,1721873444676,-587.87,0.00010978,2]
[333111981,1721873444685,-1102.92,0.00010978,2]
[333111982,1721873444694,-555.13,0.00010978,2]
[333111983,1721873444703,-704.56,0.00010978,2]
[333111984,1721873444713,-500.0,0.00010978,2]
[333111985,1721873444722,-500.0,0.00010978,2]
[333111986,1721873444731,-725.57,0.00010978,2]
[333111987,1721873444742,-500.0,0.00010978,2]
[333111988,1721873444751,-1569.36,0.00010978,2]
[333111989,1721873444760,-500.0,0.00010978,2]
[333111990,1721873444770,-500.0,0.00010978,2]
[333111991,1721873444779,-1027.67,0.00010978,2]
[333111992,1721873444788,-1019.3,0.00010978,2]
[333111993,1721873444797,-500.0,0.00010978,2]
[333111994,1721873444806,-500.0,0.00010978,2]
[333111995,1721873444815,-500.0,0.00010978,2]
[333111996,1721873444825,-500.0,0.00010978,2]
[333111997,1721873444834,-500.0,0.00010978,2]
[333111998,1721873444844,-500.0,0.00010978,2]
[333111999,1721873444853,-513.34,0.00010978,2]
[333112000,1721873444862,-1570.85,0.00010978,2]
[333112001,1721873444872,-813.15,0.00010978,2]
[333112002,1721873444881,-713.88,0.00010978,2]
[333112003,1721873444890,-509.64,0.00010978,2]
[333112004,1721873444899,-620.07,0.00010978,2]
[333112005,1721873444909,-501.50766163,0.00010978,2]
[333112006,1721873444918,-500.0,0.00010978,2]
[333112007,1721873444927,-500.0,0.00010978,2]
[333112008,1721873444937,-500.0,0.00010978,2]
[333112009,1721873444946,-500.0,0.00010978,2]
[333112010,1721873444955,-500.0,0.00010978,2]
[333112011,1721873444965,-500.0,0.00010978,2]
[333112012,1721873444974,-500.0,0.00010978,2]
[333112013,1721873444983,-1794.69,0.00010978,2]
[333112014,1721873444994,-500.0,0.00010978,2]
[333112015,1721873445003,-500.0,0.00010978,2]
[333112016,1721873445013,-500.0,0.00010978,2]
[333112017,1721873445022,-721.62,0.00010978,2]
[333112018,1721873445032,-500.0,0.00010978,2]
[333112019,1721873445042,-500.0,0.00010978,2]
[333112020,1721873445051,-330.16856916,0.00010978,2]
[333112021,1721873445061,-733.58,0.00010978,2]
[333112022,1721873445070,-647.94,0.00010978,2]
[333112023,1721873445081,-500.0,0.00010978,2]
[333112024,1721873445090,-500.0,0.00010978,2]
[333112025,1721873445100,-500.0,0.00010978,2]
[333112026,1721873445110,-500.0,0.00010978,2]
[333112027,1721873445120,-500.0,0.00010978,2]
[333112028,1721873445130,-500.0,0.00010978,2]
[333112029,1721873445139,-500.0,0.00010978,2]
[333112030,1721873445149,-155.32497993,0.00010978,2]
[333112031,1721873445159,-701.65,0.00010978,2]
[333112032,1721873445169,-500.0,0.00010978,2]
[333112033,1721873445180,-500.0,0.00010978,2]
[333112034,1721873445194,-500.0,0.00010978,2]
[333112035,1721873445203,-500.0,0.00010978,2]
[333112036,1721873445213,-500.0,0.00010978,2]
[333112037,1721873445223,-505.75470816,0.00010978,2]
[333112038,1721873445234,-522.72,0.00010978,2]
[333112039,1721873445245,-500.0,0.00010978,2]
[333112040,1721873445254,-500.0,0.00010978,2]
[333112041,1721873445265,-500.0,0.00010978,2]
[333112042,1721873445275,-862.62,0.00010978,2]
[333112043,1721873445284,-500.0,0.00010978,2]
[333112044,1721873445294,-500.0,0.00010978,2]
[333112045,1721873445303,-500.0,0.00010978,2]
[333112046,1721873445312,-500.0,0.00010978,2]
[333112047,1721873445322,-500.0,0.00010978,2]
[333112048,1721873445331,-657.05,0.00010978,2]
[333112049,1721873445341,-500.0,0.00010978,2]
[333112050,1721873445350,-500.0,0.00010978,2]
[333112051,1721873445360,-500.0,0.00010978,2]
[333112052,1721873445370,-1483.1,0.00010978,2]
[333112053,1721873445381,-500.0,0.00010978,2]
[333112054,1721873445391,-500.0,0.00010978,2]
[333112055,1721873445400,-1180.74,0.00010978,2]
[333112056,1721873445409,-520.73,0.00010978,2]
[333112057,1721873445419,-500.0,0.00010978,2]
[333112058,1721873445428,-507.24384056,0.00010978,2]
[333112059,1721873445438,-500.0,0.00010978,2]
[333112060,1721873445447,-500.0,0.00010978,2]
[333112061,1721873445457,-500.0,0.00010978,2]
[333112062,1721873445466,-500.0,0.00010978,2]
[333112063,1721873445475,-500.0,0.00010978,2]
[333112064,1721873445485,-1354.28,0.00010978,2]
[333112065,1721873445496,-1485.61,0.00010978,2]
[333112066,1721873445505,-502.63331276,0.00010978,2]
[333112067,1721873445515,-763.73,0.00010978,2]
[333112068,1721873445524,-500.0,0.00010978,2]
[333112069,1721873445534,-1767.85,0.00010978,2]
[333112070,1721873445543,-500.0,0.00010978,2]
[333112071,1721873445552,-500.0,0.00010978,2]
[333112072,1721873445562,-500.0,0.00010978,2]
[333112073,1721873445571,-541.1,0.00010978,2]
[333112074,1721873445581,-522.42,0.00010978,2]
[333112075,1721873445591,-500.0,0.00010978,2]
[333112076,1721873445600,-500.0,0.00010978,2]
[333112077,1721873445610,-500.0,0.00010978,2]
[333112078,1721873445619,-500.0,0.00010978,2]
[333112079,1721873445629,-500.0,0.00010978,2]
[333112080,1721873445639,-500.0,0.00010978,2]
[333112081,1721873445648,-590.79,0.00010978,2]
[333112082,1721873445658,-500.0,0.00010978,2]
[333112083,1721873445668,-500.0,0.00010978,2]
[333112087,1721873445678,-500.0,0.00010978,2]
[333112090,1721873445687,-500.0,0.00010978,2]
[333112093,1721873445697,-500.0,0.00010978,2]
[333112094,1721873445707,-505.36144861,0.00010978,2]
[333112095,1721873445716,-500.0,0.00010978,2]
[333112096,1721873445726,-615.09,0.00010978,2]
[333112097,1721873445736,-500.0,0.00010978,2]
[333112098,1721873445749,-500.0,0.00010978,2]
[333112099,1721873445760,-500.0,0.00010978,2]
[333112100,1721873445770,-500.0,0.00010978,2]
[333112101,1721873445779,-500.0,0.00010978,2]
[333112102,1721873445789,-500.0,0.00010978,2]
[333112103,1721873445799,-500.0,0.00010978,2]
[333112104,1721873445808,-710.57,0.00010978,2]
[333112105,1721873445818,-500.0,0.00010978,2]
[333112106,1721873445828,-499.62592508,0.00010978,2]
[333112107,1721873445837,-500.0,0.00010978,2]
[333112108,1721873445846,-624.96825148,0.00010978,2]
[333112109,1721873445856,-500.0,0.00010978,2]
[333112110,1721873445865,-500.0,0.00010978,2]
[333112111,1721873445875,-507.79482269,0.00010978,2]
[333112112,1721873445884,-500.0,0.00010978,2]
[333112113,1721873445894,-500.0,0.00010978,2]
[333112114,1721873445903,-495.13942632,0.00010978,2]
[333112115,1721873445912,-742.92,0.00010978,2]
[333112116,1721873445922,-518.00072597,0.00010978,2]
[333112117,1721873445931,-1345.13,0.00010978,2]
[333112118,1721873445940,-500.0,0.00010978,2]
[333112119,1721873445949,-500.0,0.00010978,2]
[333112120,1721873445958,-500.0,0.00010978,2]
[333112121,1721873445968,-500.0,0.00010978,2]
[333112122,1721873445977,-500.0,0.00010978,2]
[333112123,1721873445987,-500.0,0.00010978,2]
[333112124,1721873445998,-1348.24,0.00010978,2]
[333112125,1721873446007,-500.0,0.00010978,2]
[333112126,1721873446017,-500.0,0.00010978,2]
[333112127,1721873446027,-621.02,0.00010978,2]
[333112128,1721873446037,-500.0,0.00010978,2]
[333112129,1721873446046,-500.0,0.00010978,2]
[333112131,1721873446056,-500.0,0.00010978,2]
[333112133,1721873446066,-500.0,0.00010978,2]
[333112134,1721873446075,-3946.8,0.00010978,2]
[333112135,1721873446085,-500.0,0.00010978,2]
[333112136,1721873446094,-500.0,0.00010978,2]
[333112137,1721873446103,-500.0,0.00010978,2]
[333112138,1721873446113,-500.0,0.00010978,2]
[333112139,1721873446122,-500.0,0.00010978,2]
[333112140,1721873446131,-500.0,0.00010978,2]
[333112141,1721873446141,-500.0,0.00010978,2]
[333112142,1721873446150,-500.0,0.00010978,2]
[333112143,1721873446159,-500.0,0.00010978,2]
[333112144,1721873446168,-500.0,0.00010978,2]
[333112145,1721873446178,-500.0,0.00010978,2]
[333112146,1721873446191,-538.73,0.00010978,2]
[333112147,1721873446201,-500.0,0.00010978,2]
[333112148,1721873446211,-500.0,0.00010978,2]
[333112149,1721873446221,-500.0,0.00010978,2]
[333112150,1721873446232,-500.0,0.00010978,2]
[333112151,1721873446243,-500.0,0.00010978,2]
[333112152,1721873446252,-500.0,0.00010978,2]
[333112153,1721873446262,-419.26452547,0.00010978,2]
[333112154,1721873446272,-500.0,0.00010978,2]
[333112155,1721873446283,-2083.72,0.00010978,2]
[333112156,1721873446293,-500.0,0.00010978,2]
[333112157,1721873446303,-500.0,0.00010978,2]
[333112158,1721873446313,-500.0,0.00010978,2]
[333112159,1721873446322,-500.0,0.00010979,2]
[333112160,1721873446333,-500.0,0.00010979,2]
[333112161,1721873446343,-500.0,0.00010979,2]
[333112162,1721873446353,-500.0,0.00010979,2]
[333112163,1721873446362,-517.10831457,0.00010979,2]
[333112164,1721873446371,-584.86,0.00010979,2]
[333112165,1721873446381,-500.0,0.00010979,2]
[333112166,1721873446391,-500.0,0.00010979,2]
[333112167,1721873446400,-11583.19,0.00010979,2]
[333112168,1721873446409,-500.0,0.00010979,2]
[333112169,1721873446420,-500.0,0.00010979,2]
[333112170,1721873446429,-500.0,0.00010979,2]
[333112171,1721873446438,-500.0,0.00010979,2]
[333112172,1721873446507,-522.59903311,0.00010979,2]
[333112173,1721873446517,-514.56,0.00010979,2]
[333112174,1721873446527,-500.0,0.00010979,2]
[333112175,1721873446536,-500.0,0.00010979,2]
[333112176,1721873446546,-500.0,0.00010979,2]
[333112177,1721873446555,-566.78,0.00010979,2]
[333112178,1721873446565,-500.0,0.00010979,2]
[333112179,1721873446574,-446.29381882,0.00010979,2]
[333112180,1721873446583,-500.0,0.00010979,2]
[333112181,1721873446592,-500.0,0.00010979,2]
[333112182,1721873446602,-500.0,0.00010979,2]
[333112183,1721873446611,-500.0,0.00010979,2]
[333112184,1721873446620,-500.0,0.00010979,2]
[333112185,1721873446631,-500.0,0.00010979,2]
[333112186,1721873446640,-500.0,0.00010979,2]
[333112187,1721873446651,-500.0,0.00010979,2]
[333112188,1721873446660,-500.0,0.00010979,2]
[333112189,1721873446670,-500.0,0.00010979,2]
[333112190,1721873446679,-500.0,0.00010979,2]
[333112191,1721873446688,-500.0,0.00010979,2]
[333112192,1721873446698,-500.0,0.00010979,2]
[333112193,1721873446708,-500.0,0.00010979,2]
[333112194,1721873446717,-500.0,0.00010979,2]
[333112195,1721873446726,-2644.49,0.00010979,2]
[333112196,1721873446736,-500.0,0.00010979,2]
[333112197,1721873446747,-500.0,0.00010979,2]
[333112198,1721873446757,-500.0,0.00010979,2]
[333112199,1721873446767,-818.53,0.00010979,2]
[333112200,1721873446776,-500.0,0.00010979,2]
[333112201,1721873446786,-169562.46778091,0.0001098,2]
[333112202,1721873446795,-171.77108716,0.00010986,2]
[333112203,1721873446804,-157.5407813,0.00010986,2]
[333112204,1721873446813,-207.32634447,0.00010986,2]
[333112205,1721873446822,-152.81135079,0.00010986,2]
[333112206,1721873446831,-3360.85296193,0.00010988,2]
[333112207,1721873446840,-500.0,0.00010989,2]
[333112208,1721873446849,-657.05,0.00010989,2]
[333112209,1721873446858,-500.0,0.00010989,2]
[333112210,1721873446867,-500.0,0.00010989,2]
[333112211,1721873446876,-500.0,0.00010989,2]
[333112212,1721873446886,-589.86622427,0.00010989,2]
[333112213,1721873446895,-541.1,0.00010989,2]
[333112214,1721873446904,-300.0,0.00010989,2]
[333112215,1721873446914,-500.0,0.00010989,2]
[333112216,1721873446923,-500.0,0.00010989,2]
[333112217,1721873446932,-500.0,0.00010989,2]
[333112218,1721873446942,-243.12734489,0.00010989,2]
[333112219,1721873446951,-500.0,0.00010989,2]
[333112220,1721873446959,-500.0,0.00010989,2]
[333112221,1721873446968,-500.0,0.00010989,2]
[333112222,1721873446978,-500.0,0.00010989,2]
[333112223,1721873446987,-742.92,0.00010989,2]
[333112224,1721873446999,-500.0,0.00010989,2]
[333112225,1721873447008,-164.65841689,0.00010989,2]
[333112226,1721873447017,-1348.24,0.00010989,2]
[333112227,1721873447027,-621.02,0.00010989,2]
[333112228,1721873447036,-3946.8,0.00010989,2]
[333112229,1721873447045,-500.0,0.00010989,2]
[333112230,1721873447054,-500.0,0.00010989,2]
[333112231,1721873447063,-500.0,0.00010993,2]
[333112232,1721873447074,-500.0,0.00010993,2]
[333112233,1721873447083,-500.0,0.00010993,2]
[333112234,1721873447093,-500.0,0.00010993,2]
[333112235,1721873447102,-500.0,0.00010993,2]
[333112236,1721873447111,-500.0,0.00010993,2]
[333112237,1721873447120,-500.0,0.00010993,2]
[333112238,1721873447130,-2644.49,0.00010993,2]
[333112239,1721873447139,-500.0,0.00010993,2]
[333112240,1721873447149,-500.0,0.00010994,2]
[333112241,1721873447158,-500.0,0.00010994,2]
[333112242,1721873447167,-500.0,0.00010994,2]
[333112243,1721873447177,-500.0,0.00010994,2]
[333112244,1721873447191,-600.21,0.00010994,2]
[333112245,1721873447202,-771.48,0.00010994,2]
[333112246,1721873447212,-1255.98,0.00010994,2]
[333112247,1721873447222,-500.0,0.00010994,2]
[333112248,1721873447231,-587.87,0.00010994,2]
[333112249,1721873447243,-1102.92,0.00010994,2]
[333112250,1721873447252,-555.13,0.00010994,2]
[333112251,1721873447262,-704.56,0.00010994,2]
[333112252,1721873447272,-500.0,0.00010994,2]
[333112253,1721873447281,-500.0,0.00010994,2]
[333112254,1721873447290,-725.57,0.00010994,2]
[333112255,1721873447300,-500.0,0.00010994,2]
[333112256,1721873447310,-1569.36,0.00010994,2]
[333112257,1721873447319,-500.0,0.00010994,2]
[333112259,1721873447329,-500.0,0.00010994,2]
[333112261,1721873447338,-1027.67,0.00010994,2]
[333112263,1721873447347,-1019.3,0.00010994,2]
[333112265,1721873447358,-500.0,0.00010994,2]
[333112267,1721873447367,-500.0,0.00010994,2]
[333112268,1721873447375,-500.0,0.00010994,2]
[333112269,1721873447385,-500.0,0.00010994,2]
[333112270,1721873447394,-500.0,0.00010994,2]
[333112271,1721873447403,-500.0,0.00010994,2]
[333112272,1721873447412,-513.34,0.00010994,2]
[333112273,1721873447422,-1570.85,0.00010994,2]
[333112274,1721873447431,-813.15,0.00010994,2]
[333112275,1721873447440,-713.88,0.00010994,2]
[333112276,1721873447449,-509.64,0.00010994,2]
[333112277,1721873447458,-620.07,0.00010994,2]
[333112278,1721873447467,-500.0,0.00010994,2]
[333112279,1721873447476,-500.0,0.00010994,2]
[333112280,1721873447484,-500.0,0.00010994,2]
[333112281,1721873447495,-474.99265233,0.00010994,2]
[333112282,1721873447504,-500.0,0.00010994,2]
[333112283,1721873447513,-500.0,0.00010994,2]
[333112284,1721873447521,-500.0,0.00010994,2]
[333112285,1721873447531,-1794.69,0.00010994,2]
[333112286,1721873447540,-500.0,0.00010994,2]
[333112287,1721873447549,-500.0,0.00010994,2]
[333112288,1721873447558,-500.0,0.00010994,2]
[333112289,1721873447567,-721.62,0.00010994,2]
[333112290,1721873447575,-500.0,0.00010994,2]
[333112291,1721873447584,-500.0,0.00010994,2]
[333112292,1721873447593,-733.58,0.00010994,2]
[333112293,1721873447602,-647.94,0.00010994,2]
[333112294,1721873447610,-500.0,0.00010994,2]
[333112295,1721873447619,-500.0,0.00010994,2]
[333112296,1721873447628,-500.0,0.00010994,2]
[333112297,1721873447637,-500.0,0.00010994,2]
[333112298,1721873447646,-500.0,0.00010994,2]
[333112299,1721873447655,-500.0,0.00010994,2]
[333112300,1721873447664,-500.0,0.00010994,2]
[333112301,1721873447673,-701.65,0.00010994,2]
[333112302,1721873447682,-500.0,0.00010994,2]
[333112303,1721873447691,-500.0,0.00010994,2]
[333112304,1721873447700,-500.0,0.00010994,2]
[333112305,1721873447709,-429.62739819,0.00010994,2]
[333112306,1721873447718,-500.0,0.00010994,2]
[333112307,1721873447727,-522.72,0.00010994,2]
[333112308,1721873447737,-500.0,0.00010994,2]
[333112309,1721873447747,-500.0,0.00010994,2]
[333112310,1721873447756,-500.0,0.00010994,2]
[333112311,1721873447765,-862.62,0.00010994,2]
[333112312,1721873447774,-500.0,0.00010994,2]
[333112313,1721873447783,-500.0,0.00010994,2]
[333112314,1721873447792,-500.0,0.00010994,2]
[333112315,1721873447802,-500.0,0.00010994,2]
[333112316,1721873447811,-500.0,0.00010994,2]
[333112317,1721873447820,-500.0,0.00010994,2]
[333112318,1721873447828,-1483.1,0.00010994,2]
[333112319,1721873447838,-500.0,0.00010994,2]
[333112320,1721873447847,-500.0,0.00010994,2]
[333112321,1721873447856,-1180.74,0.00010994,2]
[333112322,1721873447865,-520.73,0.00010994,2]
[333112323,1721873447875,-500.0,0.00010994,2]
[333112324,1721873447885,-343.82731093,0.00010994,2]
[333112325,1721873447894,-500.0,0.00010994,2]
[333112326,1721873447903,-500.0,0.00010994,2]
[333112327,1721873447913,-1354.28,0.00010994,2]
[333112328,1721873447923,-1485.61,0.00010994,2]
[333112329,1721873447933,-763.73,0.00010994,2]
[333112330,1721873447942,-500.0,0.00010994,2]
[333112331,1721873447953,-1767.85,0.00010994,2]
[333112332,1721873447963,-500.0,0.00010994,2]
[333112333,1721873447973,-500.0,0.00010994,2]
[333112334,1721873447982,-522.42,0.00010994,2]
[333112335,1721873447992,-358.68654901,0.00010994,2]
[333112336,1721873448001,-500.0,0.00010994,2]
[333112337,1721873448011,-500.0,0.00010994,2]
[333112338,1721873448021,-500.0,0.00010994,2]
[333112339,1721873448032,-500.0,0.00010994,2]
[333112340,1721873448041,-590.79,0.00010994,2]
[333112341,1721873448051,-500.0,0.00010994,2]
[333112342,1721873448062,-500.0,0.00010994,2]
[333112343,1721873448072,-500.0,0.00010994,2]
[333112344,1721873448083,-500.0,0.00010994,2]
[333112345,1721873448093,-615.09,0.00010994,2]
[333112346,1721873448103,-500.0,0.00010994,2]
[333112347,1721873448113,-500.0,0.00010994,2]
[333112348,1721873448123,-541.9715955,0.00010994,2]
[333112349,1721873448132,-500.0,0.00010994,2]
[333112350,1721873448142,-710.57,0.00010994,2]
[333112351,1721873448155,-500.0,0.00010994,2]
[333112352,1721873448166,-500.0,0.00010994,2]
[333112353,1721873448177,-500.0,0.00010994,2]
[333112354,1721873448192,-1345.13,0.00010994,2]
[333112355,1721873448203,-500.0,0.00010994,2]
[333112356,1721873448214,-503.76788417,0.00010994,2]
[333112357,1721873448225,-500.0,0.00010994,2]
[333112358,1721873448236,-500.0,0.00010994,2]
[333112359,1721873448250,-500.0,0.00010994,2]
[333112360,1721873448261,-500.0,0.00010994,2]
[333112361,1721873448271,-500.0,0.00010994,2]
[333112362,1721873448282,-500.0,0.00010994,2]
[333112363,1721873448292,-456.00897528,0.00010994,2]
[333112364,1721873448302,-482.93,0.00010994,2]
[333112365,1721873448312,-500.0,0.00010994,2]
[333112366,1721873448323,-500.0,0.00010994,2]
[333112367,1721873448332,-258.80273359,0.00010994,2]
[333112368,1721873448342,-500.0,0.00010994,2]
[333112369,1721873448351,-500.0,0.00010994,2]
[333112370,1721873448361,-500.0,0.00010994,2]
[333112371,1721873448371,-500.0,0.00010994,2]
[333112372,1721873448381,-500.0,0.00010994,2]
[333112373,1721873448390,-500.0,0.00010994,2]
[333112374,1721873448400,-500.0,0.00010994,2]
[333112375,1721873448409,-538.73,0.00010994,2]
[333112376,1721873448419,-500.0,0.00010994,2]
[333112377,1721873448428,-500.0,0.00010994,2]
[333112378,1721873448438,-500.0,0.00010994,2]
[333112379,1721873448447,-500.0,0.00010994,2]
[333112380,1721873448458,-500.0,0.00010994,2]
[333112381,1721873448468,-500.0,0.00010994,2]
[333112382,1721873448478,-2083.72,0.00010994,2]
[333112383,1721873448488,-500.0,0.00010994,2]
[333112384,1721873448501,-500.0,0.00010994,2]
[333112385,1721873448511,-500.0,0.00010994,2]
[333112386,1721873448521,-500.0,0.00010995,2]
[333112387,1721873448531,-500.0,0.00010995,2]
[333112388,1721873448541,-500.0,0.00010995,2]
[333112389,1721873448551,-500.0,0.00010995,2]
[333112390,1721873448560,-500.0,0.00010995,2]
[333112391,1721873448570,-397.57738172,0.00010995,2]
[333112392,1721873448579,-500.0,0.00010995,2]
[333112393,1721873448589,-500.0,0.00010995,2]
[333112394,1721873448599,-500.0,0.00010995,2]
[333112395,1721873448609,-286.73981131,0.00010995,2]
[333112396,1721873448619,-500.0,0.00010995,2]
[333112397,1721873448629,-476.72984421,0.00010995,2]
[333112398,1721873448638,-500.0,0.00010995,2]
[333112399,1721873448649,-500.0,0.00010995,2]
[333112400,1721873448659,-500.0,0.00010995,2]
[333112401,1721873448669,-500.0,0.00010995,2]
[333112402,1721873448680,-500.0,0.00010995,2]
[333112403,1721873448690,-500.0,0.00010995,2]
[333112404,1721873448700,-818.53,0.00010995,2]
[333112405,1721873448711,-1545.36211978,0.00010995,2]
[333112406,1721873448720,-646.0,0.00010996,2]
[333112407,1721873448732,-82492.01685725,0.00010996,2]
[333112408,1721873448746,-157.054261,0.00010996,2]
[333112409,1721873448757,-985.48,0.00010996,2]
[333112410,1721873448769,-500.0,0.00010996,2]
[333112411,1721873448779,-500.0,0.00010996,2]
[333112412,1721873448794,-500.0,0.00010996,2]
[333112413,1721873448805,-500.0,0.00010996,2]
[333112414,1721873448815,-500.0,0.00010996,2]
[333112415,1721873448825,-500.0,0.00010996,2]
[333112416,1721873448835,-500.0,0.00010996,2]
[333112417,1721873448845,-500.0,0.00010996,2]
[333112418,1721873448855,-500.0,0.00010996,2]
[333112419,1721873448865,-557.01,0.00010996,2]
[333112420,1721873448875,-500.0,0.00010996,2]
[333112421,1721873448885,-500.0,0.00010996,2]
[333112422,1721873448895,-500.0,0.00010996,2]
[333112423,1721873448905,-500.0,0.00010996,2]
[333112424,1721873448915,-787.65,0.00010996,2]
[333112425,1721873448925,-500.0,0.00010996,2]
[333112426,1721873448935,-500.0,0.00010996,2]
[333112427,1721873448946,-500.0,0.00010996,2]
[333112428,1721873448957,-500.0,0.00010996,2]
[333112429,1721873448967,-868.98,0.00010996,2]
[333112430,1721873448987,-500.0,0.00010996,2]
[333112431,1721873449000,-568.56,0.00010996,2]
[333112432,1721873449010,-583.64910283,0.00010996,2]
[333112433,1721873449021,-500.0,0.00010996,2]
[333112434,1721873449032,-500.0,0.00010996,2]
[333112435,1721873449043,-500.0,0.00010996,2]
[333112436,1721873449053,-500.0,0.00010996,2]
[333112437,1721873449064,-241.30386704,0.00010996,2]
[333112438,1721873449074,-621.56,0.00010996,2]
[333112439,1721873449084,-566.78,0.00010996,2]
[333112440,1721873449095,-500.0,0.00010996,2]
[333112441,1721873449105,-500.0,0.00010996,2]
[333112442,1721873449117,-500.0,0.00010996,2]
[333112443,1721873449127,-1545.36211978,0.00010996,2]
[333112444,1721873449138,-500.0,0.00010997,2]
[333112445,1721873449149,-500.0,0.00010997,2]
[333112446,1721873449160,-500.0,0.00010997,2]
[333112447,1721873449171,-500.0,0.00010997,2]
[333112448,1721873449182,-600.21,0.00010997,2]
[333112449,1721873449197,-771.48,0.00010997,2]
[333112450,1721873449209,-1255.98,0.00010997,2]
[333112451,1721873449220,-500.0,0.00010997,2]
[333112452,1721873449231,-587.87,0.00010997,2]
[333112453,1721873449242,-1102.92,0.00010997,2]
[333112454,1721873449253,-555.13,0.00010997,2]
[333112455,1721873449265,-704.56,0.00010997,2]
[333112456,1721873449277,-557.87,0.00010997,2]
[333112457,1721873449288,-500.0,0.00010997,2]
[333112458,1721873449298,-725.57,0.00010997,2]
[333112459,1721873449310,-500.0,0.00010997,2]
[333112460,1721873449321,-1569.36,0.00010997,2]
[333112461,1721873449332,-500.0,0.00010997,2]
[333112462,1721873449343,-500.0,0.00010997,2]
[333112463,1721873449354,-1027.67,0.00010997,2]
[333112464,1721873449365,-1019.3,0.00010997,2]
[333112465,1721873449377,-500.0,0.00010997,2]
[333112466,1721873449388,-500.0,0.00010997,2]
[333112467,1721873449399,-500.0,0.00010997,2]
[333112468,1721873449410,-500.0,0.00010997,2]
[333112469,1721873449420,-500.0,0.00010997,2]
[333112470,1721873449431,-500.0,0.00010997,2]
[333112471,1721873449441,-513.34,0.00010997,2]
[333112472,1721873449452,-1570.85,0.00010997,2]
[333112473,1721873449462,-813.15,0.00010997,2]